bitfinex-derivatives/quotes_SOLF0:USTF0_20250923
["timestamp","ask_amount","ask_price","bid_price","bid_amount"]
[1758628059346,7.68,219.41,219.36,4.0993]
[1758628059545,7.68,219.41,219.37,7.29]
[1758628059748,7.68,219.41,219.36,1.89975576]
[1758628060252,7.68,219.41,219.38,7.29]
[1758628060452,7.68,219.44,219.37,4.0991]
[1758628061651,7.68,219.44,219.36,1.89975576]
[1758628061652,11.778,219.44,219.36,1.89975576]
[1758628062254,4.0981,219.43,219.36,1.89975576]
[1758628062456,7.68,219.44,219.36,1.89975576]
[1758628062652,7.68,219.41,219.33,1.89975576]
[1758628064353,1.89975576,219.42,219.32,344.56]
[1758628064552,6.98,219.41,219.31,4.1003]
[1758628065355,6.98,219.37,219.31,4.1003]
[1758628065656,6.98,219.37,219.3,112.89975576]
[1758628065657,6.98,219.37,219.3,111.0]
[1758628066253,1.89975576,219.39,219.3,111.0]
[1758628066254,6.98,219.38,219.3,111.0]
[1758628066849,6.98,219.36,219.3,111.0]
[1758628069358,84.1461,219.44,219.3,111.0]
[1758628069359,8.87975576,219.41,219.34,7.38]
[1758628071458,4.0988,219.4,219.31,1.89975576]
[1758628071657,6.98,219.36,219.3,118.38]
[1758628072760,4.0996,219.35,219.3,118.38]
[1758628072962,6.98,219.34,219.3,118.38]
[1758628073865,6.98,219.34,219.31,7.38]
[1758628075467,4.0996,219.35,219.3,111.0]
[1758628076067,6.98,219.34,219.3,111.0]
[1758628076264,6.98,219.33,219.3,111.0]
[1758628076563,1.89975576,219.37,219.26,120.31975576]
[1758628076775,4.1006,219.3,219.26,7.38]
[1758628077066,11.0806,219.3,219.23,118.44]
[1758628077864,6.98,219.3,219.23,111.06]
[1758628078063,6.98,219.3,219.24,7.38]
[1758628088865,1.89975576,219.31,219.22,112.85975576]
[1758628089066,6.98,219.3,219.22,112.85975576]
[1758628089271,4.1008,219.29,219.22,110.96]
[1758628091869,4.1008,219.29,219.23,7.38]
[1758628093372,6.98,219.3,219.23,7.38]
[1758628094172,11.0806,219.3,219.23,7.38]
[1758628101475,4.1006,219.3,219.23,7.38]
[1758628103579,4.1007,219.29,219.23,7.38]
[1758628104175,4.101,219.28,219.22,110.96]
[1758628104478,7.51,219.27,219.22,110.96]
[1758628104674,11.6113,219.26,219.22,118.35]
[1758628104877,7.51,219.28,219.22,118.35]
[1758628105374,4.1011,219.27,219.22,118.35]
[1758628105679,11.6111,219.27,219.23,7.39]
[1758628105878,11.6111,219.27,219.22,110.96]
[1758628106470,11.6111,219.27,219.23,7.39]
[1758628106876,11.6111,219.27,219.22,110.96]
[1758628107578,11.6111,219.27,219.23,7.39]
[1758628108177,11.6111,219.27,219.22,110.96]
[1758628108383,11.6111,219.27,219.23,7.39]
[1758628108782,4.1011,219.27,219.23,7.39]
[1758628108983,11.6111,219.27,219.23,7.39]
[1758628110577,4.1011,219.27,219.23,7.39]
[1758628110783,7.51,219.26,219.23,7.39]
[1758628113186,63.7836,219.31,219.23,7.39]
[1758628113387,63.7836,219.31,219.2,118.35]
[1758628113787,7.51,219.24,219.2,110.96]
[1758628113988,7.51,219.24,219.21,7.39]
[1758628114692,11.6117,219.24,219.21,7.39]
[1758628114894,4.1017,219.24,219.21,7.39]
[1758628115296,7.51,219.22,219.2,110.96]
[1758628115798,7.51,219.22,219.2,118.35]
[1758628118693,11.6119,219.23,219.2,118.35]
[1758628119394,11.6119,219.23,219.21,7.39]
[1758628120996,4.1021,219.22,219.16,7.39]
[1758628121199,11.6121,219.22,219.18,7.39]
[1758628121600,11.6121,219.22,219.17,110.96]
[1758628121798,11.6121,219.22,219.18,7.39]
[1758628122101,7.51,219.2,219.17,118.35]
[1758628122302,7.51,219.2,219.18,7.39]
[1758628122698,4.1022,219.21,219.17,110.96]
[1758628122999,7.51,219.23,219.18,7.39]
[1758628123204,7.51,219.28,219.18,7.39]
[1758628124303,5.09648892,219.32,219.21,2.97394004]
[1758628124607,7.02,219.34,219.23,7.58]
[1758628124904,7.02,219.34,219.23,11.6817]
[1758628125103,7.02,219.34,219.24,7.58]
[1758628125503,7.02,219.34,219.24,4.1016]
[1758628125700,7.02,219.34,219.25,7.58]
[1758628125901,7.02,219.34,219.27,7.58]
[1758628126404,4.0999,219.33,219.27,7.58]
[1758628128208,4.1003,219.32,219.27,7.58]
[1758628128403,7.02,219.31,219.27,7.58]
[1758628128605,4.1003,219.32,219.27,7.58]
[1758628128902,7.02,219.31,219.27,7.58]
[1758628129307,7.02,219.3,219.23,118.56]
[1758628131808,7.02,219.3,219.24,7.58]
[1758628132005,4.1004,219.31,219.24,7.58]
[1758628136112,11.1204,219.31,219.24,7.58]
[1758628137912,7.02,219.31,219.24,7.58]
[1758628139820,4.1006,219.3,219.24,7.58]
[1758628142022,7.02,219.31,219.24,7.58]
[1758628142822,11.1204,219.31,219.24,7.58]
[1758628143023,7.02,219.31,219.24,7.58]
[1758628144519,4.1008,219.29,219.23,110.98]
[1758628144819,11.1208,219.29,219.24,7.58]
[1758628145019,11.1208,219.29,219.23,110.98]
[1758628145219,7.02,219.29,219.24,7.58]
[1758628145425,7.02,219.29,219.23,110.98]
[1758628145617,7.02,219.29,219.24,7.58]
[1758628145819,7.02,219.29,219.23,110.98]
[1758628146326,7.02,219.29,219.24,7.58]
[1758628147025,7.02,219.29,219.23,110.98]
[1758628147721,7.02,219.29,219.24,7.58]
[1758628148027,7.02,219.29,219.23,110.98]
[1758628148223,11.1206,219.3,219.24,7.58]
[1758628148822,7.02,219.3,219.24,7.58]
[1758628149029,2.97394004,219.32,219.23,110.98]
[1758628149428,7.02,219.31,219.19,110.94]
[1758628149628,7.02,219.31,219.2,7.58]
[1758628150928,4.101,219.28,219.2,7.58]
[1758628152528,4.1011,219.27,219.2,7.58]
[1758628157733,7.29591943,219.26,219.2,7.58]
[1758628157934,4.1013,219.26,219.2,7.58]
[1758628158132,71.2363,219.3,219.2,7.58]
[1758628158440,7.45,219.28,219.2,7.58]
[1758628158626,7.45,219.26,219.2,7.58]
[1758628158826,4.1022,219.21,219.16,34.97]
[1758628159130,7.45,219.21,219.16,27.52]
[1758628159333,7.45,219.21,219.17,7.45]
[1758628159632,7.45,219.21,219.16,27.52]
[1758628160528,7.45,219.21,219.17,7.45]
[1758628161133,7.45,219.21,219.16,27.52]
[1758628161330,4.1021,219.22,219.17,7.45]
[1758628161534,10.64438375,219.21,219.17,7.45]
[1758628161733,7.45,219.21,219.15,7.45]
[1758628162133,3.29756706,219.2,219.14,110.94]
[1758628162335,7.45,219.21,219.15,7.45]
[1758628162534,3.29699275,219.2,219.15,7.45]
[1758628162827,7.45,219.24,219.15,7.45]
[1758628163033,4.1021,219.22,219.15,7.45]
[1758628163335,3.29699236,219.21,219.15,7.45]
[1758628163535,3.29699236,219.2,219.14,115.0433]
[1758628163833,3.29682116,219.19,219.06,3.61389036]
[1758628164038,10.74682116,219.18,219.08,7.45]
[1758628164331,3.29682116,219.17,219.1,7.45]
[1758628165738,7.45,219.16,219.1,7.45]
[1758628168643,11.5532,219.16,219.1,7.45]
[1758628173444,11.5534,219.15,219.08,11.5545]
[1758628173847,9.35547302,219.14,219.06,11.555]
[1758628174351,11.5537,219.13,219.06,7.45]
[1758628174750,11.5537,219.13,219.04,6.01077302]
[1758628175048,11.5537,219.13,219.05,7.45]
[1758628175243,11.5537,219.13,219.05,9.35547302]
[1758628175244,3.28676413,219.12,219.05,9.35547302]
[1758628175450,7.45,219.16,219.08,7.45]
[1758628175649,3.28633764,219.15,219.08,7.45]
[1758628175946,3.28633764,219.14,219.08,7.45]
[1758628176147,4.1034,219.15,219.08,7.45]
[1758628176351,4.1034,219.15,219.07,7.45]
[1758628176352,7.45,219.13,219.07,7.45]
[1758628177253,7.45,219.13,219.07,11.5546]
[1758628180055,7.45,219.13,219.07,7.45]
[1758628183658,11.5431,219.16,219.09,7.52]
[1758628184059,11.5431,219.16,219.1,7.52]
[1758628187564,11.5431,219.16,219.1,11.6241]
[1758628188763,11.5431,219.16,219.1,13.52957302]
[1758628194773,7.44,219.16,219.1,13.52957302]
[1758628195972,7.44,219.16,219.1,11.6241]
[1758628197375,1.90547302,219.19,219.11,11.6239]
[1758628197673,7.44,219.17,219.11,11.6239]
[1758628197870,10.75164276,219.16,219.11,4.1039]
[1758628198174,7.44,219.15,219.12,7.52]
[1758628199470,7.44,219.15,219.11,4.1039]
[1758628199675,7.44,219.18,219.12,7.52]
[1758628199876,10.75367361,219.17,219.11,11.6239]
[1758628200176,7.44,219.15,219.12,7.52]
[1758628200371,5.09648892,219.23,219.12,1.90547302]
[1758628200372,7.44,219.2,219.12,1.90547302]
[1758628200576,3.31463865,219.19,219.13,7.52]
[1758628200776,3.31463865,219.18,219.12,1.90547302]
[1758628200975,3.31463865,219.17,219.15,7.52]
[1758628201171,3.31576402,219.16,219.15,7.52]
[1758628210279,7.44,219.22,219.17,4.1029]
[1758628210483,10.76345363,219.21,219.18,7.52]
[1758628210688,3.32345363,219.2,219.18,7.52]
[1758628210889,3.32345363,219.19,219.18,7.52]
[1758628220201,7.08,219.18,219.11,7.65]
[1758628220494,3.32345363,219.17,219.11,7.65]
[1758628220699,3.32345363,219.16,219.11,7.65]
[1758628220994,7.08,219.18,219.11,7.65]
[1758628221192,3.3107714,219.17,219.11,7.65]
[1758628221392,7.14e-05,219.16,219.15,7.65]
[1758628221592,139.84258595,219.26,219.17,7.65]
[1758628221892,139.84258595,219.26,219.2,7.65]
[1758628222894,139.84258595,219.26,219.21,11.752]
[1758628223089,139.84258595,219.26,219.21,7.65]
[1758628223495,7.08,219.25,219.21,7.65]
[1758628223996,139.84258595,219.26,219.21,7.65]
[1758628224197,7.08,219.25,219.21,7.65]
[1758628224395,139.84258595,219.26,219.21,7.65]
[1758628224598,7.08,219.25,219.21,7.65]
[1758628225099,7.08,219.25,219.2,4.1022]
[1758628225298,7.08,219.25,219.21,7.65]
[1758628225996,139.84258595,219.26,219.21,7.65]
[1758628226394,7.08,219.25,219.21,7.65]
[1758628226787,139.84258595,219.26,219.21,7.65]
[1758628227100,7.08,219.26,219.18,9.55547302]
[1758628227798,7.08,219.26,219.19,4.1024]
[1758628227995,7.08,219.26,219.18,9.55547302]
[1758628229802,7.08,219.26,219.2,4.1023]
[1758628230099,7.08,219.26,219.2,11.7523]
[1758628231201,8.98547302,219.27,219.21,11.7521]
[1758628232104,1.90547302,219.27,219.21,11.7521]
[1758628232305,7.08,219.26,219.21,11.7521]
[1758628232695,7.08,219.28,219.21,11.7521]
[1758628232896,7.08,219.27,219.21,11.7521]
[1758628233602,7.08,219.25,219.22,7.65]
[1758628233803,3.2923536,219.24,219.22,7.65]
[1758628233992,3.2923536,219.23,219.22,7.65]
[1758628236198,10.3723536,219.23,219.19,7.65]
[1758628236405,3.2923536,219.22,219.18,4.1026]
[1758628236603,3.2923536,219.22,219.19,7.65]
[1758628237209,7.08,219.26,219.19,7.65]
[1758628237402,6.26719829,219.25,219.16,11.7531]
[1758628237601,3.292608,219.24,219.16,11.7531]
[1758628237904,7.08,219.22,219.16,11.7531]
[1758628238100,3.292608,219.21,219.16,4.1031]
[1758628238403,3.292608,219.2,219.16,4.1031]
[1758628238604,3.292608,219.2,219.17,7.65]
[1758628239107,3.292608,219.2,219.17,4.1028]
[1758628239401,3.292608,219.2,219.13,110.92]
[1758628239402,3.292608,219.2,219.16,7.65]
[1758628239708,7.08,219.28,219.21,4.1021]
[1758628239903,3.29363735,219.27,219.21,4.1021]
[1758628240105,10.37363735,219.26,219.21,4.1021]
[1758628240404,7.08,219.24,219.21,11.7521]
[1758628240609,3.29363735,219.23,219.21,11.7521]
[1758628240806,3.29363735,219.22,219.21,11.7521]
[1758628241006,3.29363735,219.22,219.14,7.65]
[1758628241209,10.37363735,219.21,219.14,7.65]
[1758628241500,3.29363735,219.2,219.17,7.65]
[1758628241913,3.29363735,219.19,219.17,7.65]
[1758628246911,3.29363735,219.19,219.18,7.32]
[1758628247112,7.63,219.19,219.12,7.32]
[1758628247413,3.29363735,219.18,219.12,7.32]
[1758628248006,3.29363735,219.18,219.13,4.1036]
[1758628248202,10.92363735,219.17,219.14,7.32]
[1758628248406,3.29363735,219.16,219.14,7.32]
[1758628248805,7.63,219.15,219.12,7.32]
[1758628249010,3.29363735,219.14,219.11,4.104]
[1758628249210,7.63,219.21,219.12,7.32]
[1758628249513,7.63,219.19,219.12,7.32]
[1758628249711,3.29422747,219.18,219.12,7.32]
[1758628249909,3.29422747,219.17,219.12,7.32]
[1758628250213,3.29422747,219.17,219.11,4.104]
[1758628250214,10.92422747,219.16,219.11,4.104]
[1758628250411,3.29422747,219.15,219.12,7.32]
[1758628250609,7.63,219.13,219.11,4.104]
[1758628250815,7.63,219.13,219.1,7.32]
[1758628251312,7.63,219.13,219.09,95.4844]
[1758628251814,7.63,219.19,219.1,7.32]
[1758628252021,7.63,219.17,219.1,7.32]
[1758628252215,3.29385785,219.16,219.1,11.4241]
[1758628252414,10.92385785,219.15,219.1,4.1041]
[1758628252611,3.29385785,219.14,219.11,7.32]
[1758628252812,3.29385785,219.13,219.11,7.32]
[1758628253012,7.63,219.15,219.11,7.32]
[1758628253220,3.29315921,219.14,219.11,7.32]
[1758628253420,3.29315921,219.13,219.11,7.32]
[1758628253621,7.63,219.15,219.11,7.32]
[1758628253818,3.29315921,219.14,219.11,7.32]
[1758628254017,3.29315921,219.13,219.11,7.32]
[1758628254216,7.63,219.18,219.11,7.32]
[1758628254519,3.29270858,219.17,219.11,7.32]
[1758628254706,3.29270858,219.16,219.11,7.32]
[1758628254908,3.29270858,219.15,219.11,7.32]
[1758628255117,7.63,219.13,219.09,98.7]
[1758628255315,4.1029,219.18,219.09,98.7]
[1758628255522,3.292273,219.17,219.09,98.7]
[1758628255811,7.63,219.15,219.09,98.7]
[1758628256012,7.63,219.13,219.09,98.7]
[1758628256216,7.63,219.17,219.09,98.7]
[1758628256423,3.29158829,219.16,219.09,98.7]
[1758628256614,7.63,219.14,219.09,98.7]
[1758628256814,7.63,219.12,219.09,98.7]
[1758628257225,7.63,219.17,219.1,7.32]
[1758628257422,3.29096372,219.16,219.1,7.32]
[1758628257721,3.29096372,219.15,219.09,98.7]
[1758628257926,10.92096372,219.14,219.1,7.32]
[1758628258123,3.29096372,219.13,219.1,7.32]
[1758628258324,7.63,219.14,219.09,91.38]
[1758628258526,3.29038996,219.13,219.09,91.38]
[1758628258725,7.63,219.14,219.09,91.38]
[1758628258921,3.29038996,219.13,219.09,91.38]
[1758628259125,7.63,219.14,219.09,91.38]
[1758628259323,3.28986112,219.13,219.1,7.32]
[1758628259529,7.63,219.14,219.1,7.32]
[1758628259824,3.28986112,219.13,219.1,7.32]
[1758628260024,7.63,219.13,219.09,91.38]
[1758628260227,7.63,219.13,219.1,7.32]
[1758628260830,7.63,219.17,219.1,7.32]
[1758628261029,3.28969012,219.16,219.1,7.32]
[1758628261231,3.28969012,219.15,219.09,95.4844]
[1758628261418,10.91969012,219.14,219.09,95.4844]
[1758628261622,7.63,219.14,219.09,95.4844]
[1758628261822,7.63,219.14,219.1,7.32]
[1758628262319,7.63,219.14,219.09,95.4844]
[1758628262522,7.63,219.14,219.1,7.32]
[1758628262730,7.63,219.14,219.09,95.4844]
[1758628262931,7.63,219.14,219.1,7.32]
[1758628263120,7.63,219.14,219.09,95.4844]
[1758628263526,7.63,219.14,219.1,7.32]
[1758628263728,7.63,219.17,219.1,7.32]
[1758628263928,7.63,219.15,219.09,95.4844]
[1758628264225,10.91831753,219.14,219.1,7.32]
[1758628264422,7.63,219.14,219.09,95.4844]
[1758628264823,7.63,219.14,219.1,7.32]
[1758628265232,7.63,219.14,219.09,95.4844]
[1758628265430,7.63,219.14,219.1,7.32]
[1758628265630,7.63,219.14,219.09,95.4844]
[1758628266029,7.63,219.14,219.1,7.32]
[1758628266230,7.63,219.14,219.09,95.4844]
[1758628266936,7.63,219.14,219.1,7.32]
[1758628267243,11.7331,219.17,219.1,7.32]
[1758628267536,3.2872975,219.16,219.1,7.32]
[1758628267725,7.63,219.14,219.1,7.32]
[1758628267927,7.63,219.16,219.1,7.32]
[1758628268126,7.63,219.14,219.1,7.32]
[1758628268324,10.91732964,219.13,219.1,7.32]
[1758628268527,2.97459029,219.18,219.09,91.38]
[1758628268726,3.28751515,219.17,219.09,91.38]
[1758628268928,7.63,219.15,219.09,91.38]
[1758628269126,7.63,219.13,219.09,98.7]
[1758628269339,10.91751515,219.12,219.09,98.7]
[1758628269540,7.63,219.12,219.09,98.7]
[1758628270239,4.1034,219.15,219.09,98.7]
[1758628270444,3.28734065,219.14,219.09,98.7]
[1758628270643,7.63,219.12,219.09,98.7]
[1758628272136,7.63,219.12,219.1,7.32]
[1758628274840,4.1034,219.15,219.09,91.38]
[1758628275044,3.28735215,219.14,219.08,7.01]
[1758628275245,3.28735215,219.13,219.07,4.1047]
[1758628275441,3.28735215,219.12,219.07,4.1047]
[1758628275645,7.58,219.14,219.08,7.01]
[1758628275840,3.28744815,219.13,219.08,7.5]
[1758628276146,3.28744815,219.12,219.07,4.1047]
[1758628276342,3.28744815,219.12,219.04,96.2]
[1758628276343,11.4936,219.14,219.08,7.5]
[1758628276537,3.28767253,219.13,219.06,7.5]
[1758628276742,3.28767253,219.12,219.06,7.5]
[1758628276942,11.4936,219.14,219.06,7.5]
[1758628277142,3.28767253,219.13,219.06,7.5]
[1758628277345,3.28767253,219.12,219.06,7.5]
[1758628277541,11.4936,219.14,219.06,7.5]
[1758628277746,11.4936,219.14,219.06,11.6049]
[1758628277747,3.28796811,219.13,219.06,11.6049]
[1758628278046,3.28796811,219.12,219.06,11.6049]
[1758628278246,11.4936,219.14,219.06,11.6049]
[1758628278440,3.29441211,219.13,219.06,11.6049]
[1758628278646,3.29441211,219.12,219.06,4.1049]
[1758628278848,11.4936,219.14,219.07,7.5]
[1758628279036,3.29441211,219.13,219.07,7.5]
[1758628279236,2.97459029,219.15,219.05,7.5]
[1758628279237,7.39,219.11,219.05,7.5]
[1758628279441,7.39,219.09,219.04,96.2]
[1758628279947,7.39,219.09,219.05,7.5]
[1758628280245,7.39,219.11,219.05,7.5]
[1758628280434,3.29553748,219.1,219.02,7.5]
[1758628280637,3.29553748,219.09,219.02,7.5]
[1758628280840,7.39,219.11,219.02,7.5]
[1758628281038,3.2958226,219.1,219.02,7.5]
[1758628281238,3.2958226,219.09,219.02,7.5]
[1758628281437,7.39,219.11,219.03,7.5]
[1758628281640,3.29604324,219.1,219.03,7.5]
[1758628281848,3.29604324,219.09,219.03,7.5]
[1758628282044,7.39,219.11,219.03,7.5]
[1758628282244,7.40104039,219.1,219.03,7.5]
[1758628282445,3.29674039,219.09,219.03,7.5]
[1758628282648,4.1043,219.1,219.03,7.5]
[1758628282849,10.68639057,219.09,219.03,7.5]
[1758628283049,7.39,219.07,219.01,110.94]
[1758628283350,10.68639057,219.06,219.01,110.94]
[1758628283549,3.29639057,219.05,219.01,110.94]
[1758628283745,7.39,219.06,219.02,7.5]
[1758628283951,3.29632701,219.05,219.01,110.94]
[1758628284143,7.39,219.06,219.01,110.94]
[1758628284343,3.29556728,219.05,219.01,110.94]
[1758628284542,7.39,219.06,219.02,7.5]
[1758628284752,3.29556728,219.05,219.02,7.5]
[1758628285053,7.39,219.04,219.02,7.5]
[1758628293357,7.39,219.09,219.02,7.5]
[1758628293562,3.29419212,219.08,219.02,7.5]
[1758628293861,3.29419212,219.07,219.01,110.94]
[1758628294161,3.29419212,219.06,219.02,7.5]
[1758628294355,3.29419212,219.05,219.02,7.5]
[1758628294557,7.39,219.09,219.03,4.1055]
[1758628294756,10.68378073,219.08,219.04,7.5]
[1758628294951,3.29378073,219.07,219.03,1.90670242]
[1758628295160,7.39,219.13,219.06,7.5]
[1758628295356,3.29354252,219.12,219.06,7.5]
[1758628295662,3.29354252,219.11,219.06,7.5]
[1758628295857,3.29354252,219.11,219.05,112.86670242]
[1758628295858,3.29354252,219.1,219.08,7.5]
[1758628296064,1.90670242,219.16,219.09,7.5]
[1758628296260,1.90670242,219.14,219.05,110.96]
[1758628296467,7.39,219.11,219.04,7.5]
[1758628296666,3.29329946,219.1,219.04,118.46]
[1758628297566,3.29329946,219.1,219.04,122.5653]
[1758628298562,3.29329946,219.1,219.05,4.1051]
[1758628298767,3.29329946,219.09,219.05,4.1051]
[1758628299069,13.40030242,219.14,219.06,7.5]
[1758628299367,3.29426545,219.13,219.06,7.5]
[1758628299662,3.29426545,219.12,219.06,7.5]
[1758628299862,3.29426545,219.11,219.06,7.5]
[1758628300167,3.29426545,219.1,219.06,7.5]
[1758628300367,3.29426545,219.09,219.06,7.5]
[1758628300571,7.39,219.13,219.06,7.5]
[1758628300770,3.29469928,219.12,219.06,7.5]
[1758628301069,3.29469928,219.11,219.06,7.5]
[1758628301265,3.29469928,219.1,219.06,7.5]
[1758628301468,3.29469928,219.09,219.05,4.1051]
[1758628301670,3.29469928,219.08,219.06,7.5]
[1758628301870,6.01030242,219.14,219.06,7.5]
[1758628301871,7.39,219.13,219.06,7.5]
[1758628302168,5.20162519,219.12,219.06,7.5]
[1758628302468,7.39,219.1,219.06,7.5]
[1758628302667,1.90670242,219.12,219.06,7.5]
[1758628302668,10.68492277,219.09,219.06,7.5]
[1758628302870,3.29492277,219.08,219.06,7.5]
[1758628304068,3.29492277,219.07,219.04,7.42]
[1758628304269,3.29492277,219.07,219.03,7.42]
[1758628304468,13.69070242,219.12,219.03,7.42]
[1758628304766,3.29592508,219.11,219.03,7.42]
[1758628304965,3.29592508,219.1,219.03,7.42]
[1758628305165,3.29592508,219.09,219.03,7.42]
[1758628305362,3.29592508,219.08,219.07,4.1049]
[1758628305569,3.29592508,219.08,219.07,13.43160242]
[1758628307777,3.29592508,219.08,219.07,7.42]
[1758628309977,4.1041,219.12,219.07,7.42]
[1758628310175,10.96609396,219.11,219.07,7.42]
[1758628310476,10.96609396,219.1,219.07,7.42]
[1758628310772,3.28609396,219.09,219.05,6.01180242]
[1758628310976,3.28609396,219.09,219.07,7.42]
[1758628311168,3.28609396,219.09,219.06,4.105]
[1758628311970,3.28609396,219.09,219.07,7.42]
[1758628312677,3.28609396,219.09,219.08,7.42]
[1758628314876,3.28609396,219.1,219.08,7.42]
[1758628315073,3.28609396,219.09,219.08,7.42]
[1758628315275,3.28609396,219.1,219.08,7.42]
[1758628315574,3.28609396,219.1,219.07,4.1047]
[1758628315783,3.28609396,219.1,219.09,9.32670242]
[1758628316078,3.28774392,219.15,219.1,7.42]
[1758628316376,3.28774392,219.14,219.11,1.90670242]
[1758628316582,3.28774392,219.13,219.12,7.42]
[1758628316778,3.28774392,219.18,219.12,11.5239]
[1758628317074,3.28774392,219.17,219.11,1.90670242]
[1758628317280,3.28774392,219.16,219.12,7.42]
[1758628317483,3.28774392,219.15,219.12,7.42]
[1758628317676,3.28781827,219.14,219.13,4.1036]
[1758628317878,3.28781827,219.14,219.13,11.5236]
[1758628319980,10.96781827,219.14,219.11,4.1041]
[1758628320180,3.28781827,219.13,219.11,11.5241]
[1758628320376,7.00319134,219.19,219.09,1.90670242]
[1758628320377,3.28781827,219.12,219.09,7.42]
[1758628320580,10.96781827,219.11,219.08,4.1046]
[1758628320880,3.28781827,219.1,219.09,7.42]
[1758628321072,3.28781827,219.1,219.08,4.1046]
[1758628321278,3.28839973,219.09,219.08,4.1046]
[1758628321476,3.28839973,219.09,219.08,11.5246]
[1758628321679,9.973e-05,219.09,219.08,11.5246]
[1758628321879,7.68,219.18,219.14,7.42]
[1758628322078,7.68,219.18,219.11,1.90670242]
[1758628322280,7.68,219.19,219.16,4.1031]
[1758628322572,7.68,219.2,219.16,11.5231]
[1758628322977,7.68,219.21,219.16,4.1031]
[1758628323284,5.54565452,219.22,219.16,4.1031]
[1758628323476,7.68,219.21,219.16,4.1031]
[1758628323684,5.09648892,219.22,219.16,4.1031]
[1758628323884,1.90670242,219.19,219.11,73.94]
[1758628324178,7.68,219.18,219.11,73.94]
[1758628324783,7.68,219.18,219.12,4.1038]
[1758628324974,7.68,219.18,219.12,11.5238]
[1758628328387,7.00319134,219.21,219.15,7.42]
[1758628328587,1.90670242,219.21,219.15,7.42]
[1758628329787,1.90670242,219.21,219.15,11.5233]
[1758628332694,1.90670242,219.21,219.15,7.42]
[1758628332990,7.68,219.18,219.11,81.36]
[1758628333689,7.64473338,219.24,219.13,63.8358]
[1758628333892,3.26937088,219.23,219.18,1.90670242]
[1758628334081,3.26937088,219.22,219.19,7.33]
[1758628334288,7.06,219.28,219.19,7.33]
[1758628334482,3.24434776,219.27,219.19,7.33]
[1758628334686,3.24434776,219.26,219.19,7.33]
[1758628334894,3.24434776,219.25,219.19,11.4325]
[1758628335093,3.24434776,219.24,219.2,7.33]
[1758628335387,3.24434776,219.23,219.19,4.1025]
[1758628335688,11.1611,219.28,219.2,11.4323]
[1758628335990,3.24302222,219.27,219.2,11.4323]
[1758628336190,3.24302222,219.26,219.2,11.4323]
[1758628336391,3.24302222,219.25,219.21,7.33]
[1758628336591,3.24302222,219.24,219.2,4.1023]
[1758628336786,3.24302222,219.23,219.2,4.1023]
[1758628336994,11.1611,219.28,219.21,7.57]
[1758628337192,3.24197103,219.27,219.21,7.57]
[1758628337392,3.24197103,219.26,219.2,4.1023]
[1758628337594,3.24197103,219.25,219.21,7.57]